bitfinex/quotes_SOLUSD_20250206
["timestamp","ask_amount","ask_price","bid_price","bid_amount"]
[1738884966988,2.15440051,188.9,188.89,0.03]
[1738884969985,37.76871898,188.9,188.89,0.03]
[1738884970785,22.15440051,188.9,188.89,0.03]
[1738884971667,2.15440051,188.9,188.89,0.03]
[1738884973882,22.15440051,188.9,188.89,0.03]
[1738884975985,2.15440051,188.9,188.89,0.03]
[1738884976499,30.88479574,188.9,188.89,0.03]
[1738884976672,31.87759478,188.9,188.89,0.03]
[1738884976874,12.87759478,188.9,188.89,0.03]
[1738884977789,21.46673172,188.89,188.88,0.03]
[1738884978092,31.78532695,188.89,188.88,0.03]
[1738884978272,32.78532695,188.89,188.88,0.03]
[1738884978589,1.0,188.88,188.87,0.03]
[1738884978763,1.99307561,188.88,188.87,0.03]
[1738884979297,2.45980733,188.88,188.87,0.03]
[1738884979593,0.46673172,188.88,188.87,0.03]
[1738884980168,2.05503172,188.88,188.87,0.03]
[1738884981593,0.46673172,188.88,188.87,0.03]
[1738884981968,2.05503172,188.88,188.87,0.03]
[1738884982396,0.46673172,188.88,188.87,0.03]
[1738884983696,2.05503172,188.88,188.87,0.03]
[1738884984069,11.78542695,188.88,188.87,0.03]
[1738884984780,10.78542695,188.88,188.87,0.03]
[1738884986066,30.78542695,188.88,188.87,0.03]
[1738884986266,10.78542695,188.88,188.87,0.03]
[1738884986470,2.05503172,188.88,188.87,0.03]
[1738884987692,0.46673172,188.88,188.87,0.03]
[1738884987887,2.05503172,188.88,188.87,0.03]
[1738884988087,0.46673172,188.88,188.87,0.03]
[1738884989498,0.17642132,188.9,188.87,8.76039523]
[1738884989669,0.17642132,188.9,188.89,8.73039523]
[1738884989871,0.09777755,188.94,188.89,8.73039523]
[1738884989872,0.57706842,188.97,188.9,7.9225]
[1738884990093,0.1103367,188.97,188.93,0.12549]
[1738884990292,0.1103367,188.97,188.94,0.39485178]
[1738884990579,0.1103367,188.97,188.96,8.73039523]
[1738884990924,0.1103367,188.97,188.96,9.12498467]
[1738884991270,0.10357018,188.99,188.96,11.16454467]
[1738884991473,0.46673172,189.05,188.98,6.41588]
[1738884991775,0.46673172,189.08,189.04,8.73039523]
[1738884991980,0.46673172,189.08,189.07,8.73039523]
[1738884992174,0.063,189.09,189.07,8.73039523]
[1738884992175,0.52973172,189.09,189.07,8.73039523]
[1738884992376,0.52973172,189.09,189.08,8.73039523]
[1738884992377,0.063,189.09,189.08,8.73039523]
[1738884992676,0.063,189.09,189.08,13.60496609]
[1738884993076,0.063,189.09,189.08,27.20993218]
[1738884993276,0.063,189.09,189.08,33.37483218]
[1738884993583,0.063,189.09,189.08,47.28864071]
[1738884994292,0.0001,189.09,189.08,48.82190899]
[1738884994496,0.063,189.14,189.1,0.25098]
[1738884994672,0.063,189.14,189.13,13.60496609]
[1738884994876,0.063,189.14,189.13,18.89226609]
[1738884995176,0.063,189.14,189.13,19.53603575]
[1738884995593,0.063,189.14,189.13,33.19886428]
[1738884996184,0.063,189.14,189.13,33.73213256]
[1738884996601,0.063,189.14,189.13,33.19886428]
[1738884998003,0.16943828,189.14,189.13,33.19886428]
[1738884998807,0.03462131,189.14,189.13,33.19886428]
[1738884998986,0.03462131,189.14,189.13,19.53603575]
[1738884999311,0.46673172,189.13,189.12,13.60496609]
[1738884999601,0.46673172,189.1,189.08,13.60496609]
[1738884999785,0.46673172,189.09,189.08,13.60496609]
[1738885000299,0.46673172,189.11,189.08,13.60496609]
[1738885000488,0.46673172,189.12,189.1,13.60496609]
[1738885000692,0.46673172,189.12,189.11,13.60496609]
[1738885000876,0.46673172,189.13,189.11,13.60496609]
[1738885001074,0.46673172,189.13,189.08,0.39341434]
[1738885001075,0.46673172,189.13,189.12,13.60496609]
[1738885001490,0.46673172,189.11,189.1,13.60496609]
[1738885001798,0.46673172,189.12,189.1,13.60496609]
[1738885002004,0.46673172,189.12,189.11,13.60496609]
[1738885003280,0.46673172,189.13,189.11,13.60496609]
[1738885003502,0.46673172,189.13,189.12,13.60496609]
[1738885004804,0.50135303,189.14,189.12,18.89256609]
[1738885004995,0.50135303,189.14,189.13,13.60496609]
[1738885005304,0.46673172,189.13,189.11,13.60496609]
[1738885005507,0.46673172,189.12,189.11,13.60496609]
[1738885007109,0.46673172,189.1,189.08,13.60496609]
[1738885007402,0.46673172,189.08,189.07,13.60496609]
[1738885008711,0.46673172,189.07,189.06,13.60496609]
[1738885009015,0.46673172,189.04,189.01,13.60496609]
[1738885009511,0.46673172,189.02,188.98,5.2915]
[1738885009686,0.46673172,189.03,188.99,0.12549]
[1738885009892,0.46673172,189.04,188.99,0.39447521]
[1738885010211,20.0,189.09,189.03,18.89506609]
[1738885010212,0.46673172,189.05,189.03,18.89506609]
[1738885010386,0.46673172,189.05,189.04,13.60496609]
[1738885011495,0.46673172,189.03,189.02,13.60496609]
[1738885013110,0.46673172,189.05,189.02,18.89536609]
[1738885013428,0.46673172,189.06,189.04,13.60496609]
[1738885013613,0.46673172,189.06,189.05,13.60496609]
[1738885013786,1.6493,189.12,189.05,13.60496609]
[1738885013787,0.46673172,189.07,189.05,13.60496609]
[1738885013989,0.46673172,189.09,189.07,5.289]
[1738885014186,0.46673172,189.09,189.08,13.60496609]
[1738885014405,0.46673172,189.1,189.08,13.60496609]
[1738885014599,0.46673172,189.1,189.09,13.60496609]
[1738885016487,0.46673172,189.1,189.09,18.89336609]
[1738885016700,0.46673172,189.11,189.09,18.89336609]
[1738885016907,0.063,189.12,189.1,13.60496609]
[1738885017104,0.063,189.12,189.09,18.89336609]
[1738885017105,0.063,189.12,189.11,13.85594609]
[1738885017308,0.03462131,189.14,189.13,0.12549]
[1738885017510,0.03462131,189.14,189.13,27.91161575]
[1738885018120,0.13163432,189.14,189.13,27.91161575]
[1738885019017,0.13163432,189.14,189.13,19.78706722]
[1738885019499,0.09701301,189.14,189.13,19.78706722]
[1738885019697,0.09701301,189.14,189.13,33.19891575]
[1738885020311,0.06301301,189.14,189.13,33.19891575]
[1738885020514,1.301e-05,189.14,189.13,33.73218403]
[1738885020713,1.301e-05,189.14,189.13,33.19891575]
[1738885021023,3.131e-05,189.15,189.14,14.44707681]
[1738885021315,0.17832684,189.18,189.17,0.12549]
[1738885021518,0.17832684,189.18,189.17,28.10408979]
[1738885021723,2.684e-05,189.18,189.17,42.0492066]
[1738885022105,9.006e-05,189.19,189.18,14.44707681]
[1738885022303,0.16536753,189.22,189.2,1.03522828]
[1738885022614,0.063,189.27,189.23,0.12549]
[1738885022804,0.063,189.27,189.26,13.73045609]
[1738885023319,0.063,189.27,189.26,19.39062609]
[1738885023493,0.063,189.27,189.26,46.79895766]
[1738885024514,0.46673172,189.32,189.26,46.79895766]
[1738885024705,0.46673172,189.32,189.31,13.60496609]
[1738885024903,0.063,189.33,189.31,13.73045609]
[1738885024904,0.52973172,189.33,189.31,13.73045609]
[1738885025104,0.063,189.33,189.32,13.73045609]
[1738885025420,0.063,189.35,189.34,13.91380853]
[1738885025715,0.063,189.35,189.34,27.90924544]
[1738885025932,0.063,189.35,189.34,41.51421153]
[1738885026421,0.46673172,189.45,189.39,13.53733853]
[1738885026619,0.46673172,189.45,189.44,13.60496609]
[1738885026799,0.46673172,189.4,189.39,13.60496609]
[1738885027406,0.46673172,189.41,189.39,19.01035609]
[1738885027600,20.0,189.45,189.4,13.73045609]
[1738885027601,0.46673172,189.42,189.4,13.73045609]
[1738885027807,0.46673172,189.42,189.41,13.60496609]
[1738885028021,0.46673172,189.37,189.35,13.60496609]
[1738885028205,0.46673172,189.36,189.34,5.2814]
[1738885028407,0.46673172,189.38,189.34,5.2814]
[1738885028619,3.5894806,189.41,189.35,14.3044716]
[1738885028927,3.12274888,189.41,189.4,13.60496609]
[1738885029107,0.46673172,189.46,189.43,5.2789]
[1738885029310,0.46673172,189.46,189.45,13.60496609]
[1738885030030,0.46673172,189.42,189.41,13.60496609]
[1738885030199,0.46673172,189.4,189.38,13.60496609]
[1738885030405,0.46673172,189.39,189.38,13.60496609]
[1738885030722,0.46673172,189.39,189.38,21.70379633]
[1738885031608,0.46673172,189.4,189.38,26.98409633]
[1738885031804,0.46673172,189.4,189.39,21.70379633]
[1738885032131,0.46673172,189.39,189.38,21.70379633]
[1738885032334,0.46673172,189.35,189.34,21.70379633]
[1738885032534,0.46673172,189.33,189.32,21.70379633]
[1738885034404,1.5842,189.36,189.29,21.70379633]
[1738885034405,0.46673172,189.32,189.29,21.70379633]
[1738885035016,1.5844,189.34,189.27,0.12549]
[1738885035017,0.46673172,189.3,189.27,0.12549]
[1738885035335,0.46673172,189.3,189.29,21.70379633]
[1738885035714,0.46673172,189.3,189.23,0.39160556]
[1738885035715,0.46673172,189.29,189.28,21.70379633]
[1738885035914,0.46673172,189.22,189.2,5.2854]
[1738885036117,0.46673172,189.2,189.19,5.2856]
[1738885036316,0.46673172,189.2,189.18,21.70379633]
[1738885036317,0.46673172,189.19,189.18,21.70379633]
[1738885036622,0.46673172,189.18,189.16,5.2862]
[1738885037024,5.5466,189.3,189.16,5.2862]
[1738885037025,0.46673172,189.21,189.17,44.3021929]
[1738885037214,0.46673172,189.21,189.2,21.70379633]
[1738885038110,0.56651466,189.21,189.2,26.98919633]
[1738885038310,0.09978294,189.21,189.2,26.98919633]
[1738885038732,0.56651466,189.21,189.2,26.98919633]
[1738885038934,0.09978294,189.21,189.2,41.29536654]
[1738885039115,0.10547376,189.22,189.21,13.53733853]
[1738885039319,0.10547376,189.22,189.21,21.82928633]
[1738885039714,0.57220548,189.22,189.21,21.70379633]
[1738885039904,0.03,189.38,189.3,1.0]
[1738885040101,0.03,189.38,189.33,13.91380853]
[1738885040334,0.03,189.38,189.37,22.20575633]
[1738885040535,0.03,189.38,189.37,21.70379633]
[1738885043238,0.03,189.38,189.36,21.70379633]
[1738885043465,0.03,189.38,189.37,21.70379633]
[1738885045514,0.03,189.38,189.36,21.70379633]
[1738885046151,20.0,189.43,189.36,22.14379633]
[1738885046950,42.70379633,189.41,189.34,22.14379633]
[1738885047260,20.0,189.37,189.34,0.44]
[1738885047573,6.1031,189.42,189.35,21.70379633]
[1738885047574,1.0,189.41,189.35,21.70379633]
[1738885047749,1.0,189.41,189.36,21.70379633]
[1738885048061,20.0,189.4,189.36,21.70379633]
[1738885048237,20.0,189.4,189.35,21.70379633]
[1738885048770,21.584,189.39,189.35,21.70379633]
[1738885049068,2.584,189.39,189.34,22.14379633]
[1738885049368,2.584,189.39,189.27,0.44]
[1738885049369,21.70379633,189.35,189.27,0.44]
[1738885049562,21.70379633,189.34,189.28,0.44]
[1738885049762,21.70379633,189.35,189.29,0.44]
[1738885049967,21.70379633,189.35,189.28,22.14379633]
[1738885050167,21.70379633,189.35,189.28,0.44]
[1738885050463,21.70379633,189.35,189.29,0.44]
[1738885050634,1.5844,189.34,189.29,0.44]
[1738885050842,1.5844,189.34,189.28,0.44]
[1738885051066,1.5844,189.34,189.28,22.14379633]
[1738885051371,1.5844,189.34,189.3,0.44]
[1738885051746,21.70379633,189.45,189.28,21.70379633]
[1738885051747,4.3,189.41,189.36,0.44]
[1738885051941,26.00379633,189.41,189.35,0.44]
[1738885052351,20.0,189.37,189.33,22.14379633]
[1738885052570,20.0,189.37,189.32,0.44]
[1738885052769,1.5842,189.36,189.32,0.44]
[1738885053268,20.0,189.37,189.34,0.44]
[1738885054247,21.5842,189.37,189.33,22.14379633]
[1738885054454,21.5842,189.37,189.33,0.44]
[1738885055673,25.66359633,189.4,189.33,0.44]
[1738885055871,20.0,189.38,189.36,0.44]
[1738885056371,20.0,189.38,189.33,22.14379633]
[1738885056667,20.0,189.38,189.34,0.44]
[1738885057648,21.5841,189.38,189.34,0.44]
[1738885057846,1.5841,189.38,189.32,22.14379633]
[1738885058046,0.09566979,189.35,189.31,0.44]
[1738885058371,0.09566979,189.35,189.26,22.14379633]
[1738885058372,21.70379633,189.34,189.26,22.14379633]
[1738885058676,20.0,189.32,189.26,21.70379633]
[1738885058875,41.70379633,189.32,189.26,0.44]
[1738885059076,41.70379633,189.32,189.25,0.44]
[1738885059251,42.70379633,189.33,189.29,0.44]
[1738885059572,0.09566979,189.35,189.34,0.44]
[1738885059755,0.09566979,189.35,189.34,21.70379633]
[1738885060074,0.09566979,189.35,189.34,22.14379633]
[1738885060251,0.09566979,189.35,189.34,0.44]
[1738885060576,0.09566979,189.35,189.34,22.14379633]
[1738885062367,0.09566979,189.35,189.34,21.70379633]
[1738885062665,0.09566979,189.35,189.33,22.14379633]
[1738885062874,0.09566979,189.35,189.33,0.44]
[1738885063959,0.09566979,189.35,189.34,22.14379633]
[1738885064464,0.09566979,189.35,189.34,23.03665771]
[1738885064771,0.09566979,189.35,189.34,58.15230257]
[1738885065373,0.09566979,189.35,189.34,22.66018771]
[1738885066049,0.09566979,189.35,189.34,27.94168771]
[1738885067671,0.09566979,189.35,189.34,27.42529633]
[1738885067875,0.09566979,189.35,189.34,21.70379633]
[1738885068078,0.09566979,189.35,189.31,21.70379633]
[1738885068374,1.68006979,189.35,189.31,21.70379633]
[1738885068674,1.68006979,189.35,189.29,21.70379633]
[1738885069173,21.70379633,189.34,189.28,0.063]
[1738885069356,20.0,189.33,189.28,22.20679633]
[1738885071079,0.09566979,189.35,189.32,0.44]
[1738885071281,0.09566979,189.35,189.34,21.70379633]
[1738885071481,20.09566979,189.35,189.34,21.70379633]
[1738885071779,20.09566979,189.35,189.33,21.70379633]
[1738885071972,20.09566979,189.35,189.31,21.70379633]
[1738885072169,20.09566979,189.35,189.33,0.44]
[1738885072381,20.09566979,189.35,189.33,21.70379633]
[1738885072549,20.09566979,189.35,189.32,21.70379633]
[1738885074178,0.09566979,189.35,189.33,0.44]
[1738885074384,0.09566979,189.35,189.34,22.14379633]
[1738885074963,0.09566979,189.35,189.34,27.42529633]
[1738885075160,0.09566979,189.35,189.34,27.55078633]
[1738885075364,0.09566979,189.35,189.34,21.70379633]
[1738885075895,0.09566979,189.35,189.34,22.14379633]
[1738885076099,0.09566979,189.35,189.34,21.70379633]
[1738885076271,0.09566979,189.35,189.34,22.14379633]
[1738885077998,0.20830355,189.35,189.34,22.14379633]
[1738885079401,0.11263376,189.35,189.34,22.14379633]
[1738885080100,0.11263376,189.35,189.33,22.14379633]
[1738885080886,0.11263376,189.35,189.34,0.063]
[1738885081787,1.69693376,189.35,189.34,0.063]
[1738885083311,0.11263376,189.35,189.34,0.503]
[1738885083611,0.11263376,189.35,189.34,22.20679633]
[1738885083812,0.11263376,189.35,189.34,27.48829633]
[1738885084585,0.11263376,189.35,189.34,19.35000756]
[1738885085214,0.11263376,189.35,189.34,14.06850756]
[1738885085513,0.11263376,189.35,189.34,0.063]
[1738885085716,15.82244132,189.35,189.34,0.063]
[1738885086600,1.69693376,189.35,189.34,0.063]
[1738885089021,23.98251187,189.35,189.34,0.063]
[1738885089515,23.42251187,189.35,189.34,0.063]
[1738885089721,1.69693376,189.35,189.34,0.063]
[1738885090519,23.98251187,189.35,189.34,0.063]
[1738885090717,24.98251187,189.35,189.34,0.063]
[1738885090922,23.98251187,189.35,189.34,0.063]
[1738885091522,23.42251187,189.35,189.34,0.063]
[1738885091725,23.98251187,189.35,189.34,0.063]
[1738885092519,23.42251187,189.35,189.34,0.063]
[1738885093615,23.98251187,189.35,189.34,0.063]
[1738885094121,24.98251187,189.35,189.34,0.063]
[1738885094824,24.42251187,189.35,189.34,0.063]
[1738885095027,24.98251187,189.35,189.34,0.063]
[1738885095402,24.42251187,189.35,189.34,0.063]
[1738885096024,24.98251187,189.35,189.34,0.063]
[1738885096429,24.42251187,189.35,189.34,0.063]
[1738885098029,24.53689235,189.35,189.34,0.063]
[1738885099225,37.94874088,189.35,189.34,0.063]
[1738885099406,39.38662775,189.35,189.34,0.063]
[1738885100131,37.83610712,189.35,189.34,0.063]
[1738885100504,2.69868048,189.35,189.34,0.063]
[1738885100701,0.11438048,189.35,189.34,22.22857811]
[1738885103735,0.11438048,189.35,189.34,0.063]
[1738885104237,1.69868048,189.35,189.34,0.063]
[1738885105836,21.69868048,189.35,189.34,0.063]
[1738885107834,43.42425859,189.35,189.34,0.063]
[1738885108023,59.38662308,189.35,189.34,0.063]
[1738885108335,57.82662308,189.35,189.34,0.063]
[1738885108538,59.38662308,189.35,189.34,0.063]
[1738885108911,57.82662308,189.35,189.34,0.063]
[1738885109111,56.83610712,189.35,189.34,0.063]
[1738885110341,57.83610712,189.35,189.34,0.063]
[1738885110645,58.64708712,189.35,189.34,0.063]
[1738885112718,50.50268711,189.35,189.34,0.063]
[1738885113735,20.0,189.31,189.28,0.063]
[1738885113937,13.5811781,189.29,189.28,0.063]
[1738885115350,15.1659781,189.29,189.28,0.063]
[1738885116334,8.31138647,189.35,189.29,0.44]
[1738885116537,6.33085589,189.34,189.3,14.0211781]
[1738885116715,6.33085589,189.34,189.31,0.44]
[1738885117215,6.33085589,189.34,189.32,0.44]
[1738885117430,6.33085589,189.34,189.31,14.0211781]
[1738885117622,8.31138647,189.35,189.33,0.44]
[1738885117941,8.31138647,189.35,189.33,14.0211781]
[1738885118237,0.11347361,189.34,189.33,14.0211781]
[1738885118618,0.11347361,189.34,189.33,22.14864129]
[1738885119610,0.11347361,189.34,189.32,0.44]
[1738885119835,0.11347361,189.34,189.31,22.14864129]
[1738885120040,0.11347361,189.34,189.32,0.44]
[1738885120229,0.11347361,189.34,189.33,0.44]
[1738885120541,0.11347361,189.34,189.33,22.14864129]
[1738885122919,0.11166378,189.35,189.33,22.65060129]
[1738885123120,0.12893791,189.43,189.41,0.44]
[1738885123319,0.12893791,189.43,189.41,28.16714129]
[1738885123550,0.12893791,189.43,189.41,28.29263129]
[1738885124042,0.12893791,189.43,189.41,33.57213129]
[1738885124227,0.12893791,189.43,189.41,28.16714129]
[1738885125625,0.12893791,189.43,189.41,22.14864129]
[1738885129248,0.12893791,189.43,189.41,27.42814129]
[1738885130953,0.12893791,189.43,189.41,22.14864129]
[1738885132834,0.12893791,189.43,189.41,0.44]
[1738885137657,0.12893791,189.43,189.38,0.44]
[1738885137828,41.70864129,189.39,189.34,0.063]
[1738885138155,41.82104277,189.39,189.34,0.063]
[1738885138338,0.11240148,189.39,189.34,0.063]
[1738885139161,1.5841,189.38,189.34,0.063]
[1738885140041,15.15596201,189.38,189.34,0.063]
[1738885140267,20.0,189.35,189.34,0.063]
[1738885141342,21.5843,189.35,189.34,0.063]
[1738885143738,35.15616201,189.35,189.34,0.063]
[1738885146855,21.5843,189.35,189.34,0.063]
[1738885157184,35.15616201,189.35,189.34,0.063]
[1738885157766,36.14675001,189.35,189.34,0.063]
[1738885158069,36.25562941,189.35,189.34,0.063]
[1738885159556,49.66747794,189.35,189.34,0.063]
[1738885159778,50.22747794,189.35,189.34,0.063]
[1738885161574,51.22747794,189.35,189.34,0.063]
[1738885161752,49.66747794,189.35,189.34,0.063]
[1738885162262,20.0,189.31,189.28,0.063]
[1738885162467,102.1,189.31,189.28,0.063]
[1738885163175,1.5847,189.3,189.28,0.063]
[1738885164649,102.1,189.31,189.28,0.063]
[1738885164856,103.6847,189.31,189.28,0.063]
[1738885176699,24.24926155,189.3,189.28,0.063]
[1738885176898,8.69261302,189.29,189.28,0.063]
[1738885177885,10.27741302,189.29,189.28,0.063]
[1738885178199,10.3819974,189.29,189.28,0.063]
[1738885178700,25.3446788,189.29,189.28,0.063]
[1738885179000,24.7846788,189.29,189.28,0.063]
[1738885179202,23.79384593,189.29,189.28,0.063]
[1738885180286,24.35384593,189.29,189.28,0.063]
[1738885180700,23.79384593,189.29,189.28,0.063]
[1738885180904,24.35384593,189.29,189.28,0.063]
[1738885181702,24.60482593,189.29,189.28,0.063]
[1738885181883,33.5035682,189.29,189.28,0.063]
[1738885182399,33.6290582,189.29,189.28,0.0001]
[1738885185184,71.16101575,189.29,189.28,0.0001]
[1738885190712,30.53193273,189.29,189.28,0.0001]
[1738885191613,15.5352842,189.29,189.28,0.0001]
[1738885191917,20.10458438,189.29,189.28,0.0001]
[1738885192504,20.10458438,189.29,189.28,0.4401]
[1738885192806,20.10458438,189.29,189.28,0.0001]
[1738885193609,20.10458438,189.29,189.28,0.4401]
[1738885194521,20.10458438,189.29,189.28,0.0001]
[1738885194699,20.10458438,189.29,189.28,0.4401]
[1738885195014,20.10458438,189.29,189.28,0.0001]
[1738885197488,21.68938438,189.29,189.28,0.0001]
[1738885198105,21.79773495,189.29,189.28,0.0001]
[1738885198901,21.82773495,189.29,189.28,0.0001]
[1738885199421,21.72315057,189.29,189.28,0.0001]
[1738885201231,30.41576359,189.29,189.28,0.0001]
[1738885207930,46.37843146,189.29,189.28,0.0001]
[1738885208140,47.2514323,189.29,189.28,0.0001]
[1738885208329,54.6853717,189.29,189.28,0.0001]
[1738885208637,53.9998817,189.29,189.28,0.0001]
[1738885209529,54.5598817,189.29,189.28,0.0001]
[1738885211735,40.33705317,189.29,189.28,0.0001]
[1738885211906,38.34623383,189.29,189.28,0.0001]
[1738885213220,53.74888113,189.29,189.28,0.0001]
[1738885216238,54.68535113,189.29,189.28,0.0001]
[1738885218052,54.78898907,189.29,189.28,0.0001]
[1738885219456,54.6806385,189.29,189.28,0.0001]
[1738885222761,1.0,189.24,189.22,0.063]
[1738885222956,8.69261302,189.23,189.22,0.063]
[1738885223453,90.79261302,189.23,189.22,0.063]
[1738885223871,92.37791302,189.23,189.22,0.063]
[1738885224233,93.37791302,189.23,189.22,0.063]
[1738885224463,92.37791302,189.23,189.22,0.063]
[1738885226557,107.60074155,189.23,189.22,0.063]
[1738885226859,115.53121179,189.23,189.22,0.063]
[1738885227549,114.53121179,189.23,189.22,0.063]
[1738885228460,32.43121179,189.23,189.22,0.063]
[1738885228759,33.42249706,189.23,189.22,0.063]
[1738885230065,34.54798706,189.23,189.22,0.0001]
[1738885230258,42.07994461,189.23,189.22,0.0001]
[1738885230852,0.68549,189.21,189.2,0.0001]
[1738885231064,29.02139042,189.21,189.2,0.0001]
[1738885231268,44.18085317,189.21,189.2,0.0001]
[1738885231759,14.34831853,189.16,189.15,0.0001]
[1738885231964,14.34831853,189.16,189.13,0.063]
[1738885231965,35.09733853,189.14,189.13,0.0001]
[1738885232165,37.92618127,189.14,189.13,0.0001]
[1738885232341,50.23943172,189.14,189.13,0.0001]
[1738885232537,80.23943172,189.14,189.13,0.0001]
[1738885233146,88.93204474,189.14,189.13,0.0001]
[1738885234740,1.68549,189.12,189.11,0.03]
[1738885234948,65.34831853,189.1,189.09,0.0001]
[1738885235149,117.85911464,189.1,189.09,0.0001]
[1738885235440,128.51381142,189.1,189.09,0.0001]
[1738885236277,130.10021142,189.1,189.09,0.0001]
[1738885236771,0.12549,189.04,189.01,0.063]
[1738885236937,22.10446155,189.02,189.01,0.063]
[1738885237870,24.04093155,189.02,189.01,0.0001]
[1738885238049,104.38342511,189.02,189.01,0.0001]
[1738885238246,105.97052511,189.02,189.01,0.0001]
[1738885239067,22.78223012,188.97,188.96,0.03]
[1738885239260,23.77488428,188.97,188.96,0.03]
[1738885239570,23.90037428,188.97,188.96,0.03]
[1738885240568,8.55940159,188.97,188.96,0.03]
[1738885240761,1.5872,189.01,188.96,0.47]
[1738885241068,10.38932671,189.02,188.98,0.44]
[1738885241276,1.69671369,189.02,188.98,0.44]
[1738885241459,21.69671369,189.02,188.97,0.44]
[1738885241662,0.10961369,189.02,188.99,0.44]
[1738885241955,28.80222671,189.02,188.97,0.44]
[1738885242156,28.80222671,189.02,189.0,0.44]
[1738885242157,20.10961369,189.02,189.0,0.44]
[1738885242382,20.0,189.01,189.0,0.44]
[1738885242760,0.10961369,189.02,189.0,0.44]
[1738885242981,20.10961369,189.02,189.01,0.44]
[1738885243148,20.10961369,189.02,188.99,0.44]
[1738885243356,0.10961369,189.02,189.0,0.44]
[1738885243671,0.10961369,189.02,188.99,0.44]
[1738885243853,0.10961369,189.02,188.98,2.1051]
[1738885244049,20.0,189.01,188.98,1.6651]
[1738885246297,15.31833165,189.02,188.98,1.6651]
[1738885246589,13.62161796,189.01,188.98,1.6651]
[1738885246765,13.62161796,189.0,188.96,0.03]
[1738885247191,13.62161796,188.99,188.96,0.03]
[1738885247491,20.0,188.97,188.96,0.03]
[1738885248787,33.62161796,188.97,188.96,0.03]
[1738885249893,35.20911796,188.97,188.96,0.03]
[1738885251810,21.5875,188.97,188.96,0.03]
[1738885252287,20.0,188.97,188.96,0.03]
[1738885252493,1.5874,188.99,188.96,0.03]
[1738885253202,13.62161796,188.97,188.96,0.03]
[1738885253504,35.20911796,188.97,188.96,0.03]
[1738885253885,15.20911796,188.97,188.96,0.03]
[1738885254283,28.62096649,188.97,188.96,0.03]
[1738885255277,33.41184853,188.95,188.94,0.063]
[1738885255474,48.02617947,188.95,188.94,0.063]
[1738885255678,85.77914947,188.95,188.94,0.0001]
[1738885255897,15.22282853,188.93,188.92,0.0001]
[1738885256199,73.58450019,188.93,188.87,0.03]
[1738885256500,47.96993649,188.88,188.87,0.0001]
[1738885256702,49.96315418,188.88,188.87,0.0001]
[1738885257275,51.55145418,188.88,188.87,0.0001]
[1738885257488,51.55145418,188.88,188.81,0.063]
[1738885257489,20.93647,188.82,188.81,0.063]
[1738885257692,15.34831853,188.81,188.8,0.0001]
[1738885257896,28.96993649,188.81,188.8,0.0001]
[1738885258084,29.07076896,188.81,188.8,0.0001]
[1738885258781,29.07076896,188.81,188.79,0.03]
[1738885258782,14.34831853,188.76,188.75,0.0001]
[1738885259085,29.96376552,188.76,188.75,0.0001]
[1738885259299,61.55306552,188.76,188.75,0.0001]
[1738885260602,20.56,188.71,188.63,6.1609]
[1738885260789,13.62161796,188.68,188.63,6.6009]
[1738885261311,1.59,188.67,188.63,6.1609]
[1738885261472,15.21161796,188.67,188.62,1.7247]
[1738885261802,20.0,188.65,188.62,2.1647]
[1738885262009,20.0,188.65,188.61,183.62161796]
[1738885262010,20.0,188.65,188.61,180.78631796]
[1738885262298,20.0,188.65,188.61,167.1647]
[1738885262496,33.62161796,188.65,188.61,167.1647]
[1738885262709,33.62161796,188.65,188.61,166.7247]
[1738885262884,13.62161796,188.63,188.61,166.7247]
[1738885263197,13.62161796,188.62,188.61,166.7247]
[1738885263410,13.62161796,188.62,188.61,138.2933]
[1738885263411,29.87484649,188.62,188.61,138.2933]
[1738885263575,30.56033649,188.62,188.61,14.52123365]
[1738885263885,13.66282853,188.54,188.45,0.44]
[1738885264078,13.62161796,188.49,188.46,0.44]
[1738885264277,13.62161796,188.47,188.42,0.44]
[1738885264481,13.62161796,188.45,188.4,0.44]
[1738885264678,33.87259796,188.48,188.42,0.44]